Cogmind - Beta 13 @@@ ROGUE MODE // 2024.05.11 @ 17:46:07 Player: NQH Result: Destroyed by S-10 Pest with Light Assault Rifle Performance ------------- Evolutions (0) 0 Regions Visited (1) 200 Robots Destroyed (8) 40 Value Destroyed (244) 244 Prototype IDs (0) 0 Alien Tech Used (0) 0 Bonus (0) 0 TOTAL SCORE: 484 Bonus ------- None Cogmind --------- Core Integrity 0/250 Matter 283/300 Energy 250/250 System Corruption 5% Temperature Cool (0) Movement Core (250) Ox4 Location -10/Materials Parts ------- > --- POWER (1) -------- Ion Engine > --- PROPULSION (2) --- (None) > --- UTILITY (2) ------ Core Shielding Core Shielding > --- WEAPON (2) ------- Particle Gun Maul > --- INVENTORY (5) ---- Light Assault Rifle Datajack Datajack Datajack Maul Peak State ------------ > --- POWER ------------ Ion Engine > --- PROPULSION ------- Improved Hover Unit Improved Hover Unit > --- UTILITY ---------- Core Shielding Core Shielding > --- WEAPON ----------- Assault Rifle Light Assault Rifle > --- INVENTORY -------- Light Treads Light Treads Grenade Launcher Maul [Rating: 9] Favorites ----------- Power Ion Engine Engine Ion Engine Propulsion Improved Hover Unit Treads Light Treads Hover Unit Improved Hover Unit Utility Core Shielding Protection Core Shielding Weapon Assault Rifle Energy Gun Particle Gun Ballistic Gun Assault Rifle Launcher Grenade Launcher Impact Weapon Maul Special Melee Weapon Datajack Build | -11 -10 ------- Run | Yrd Mat Slots Evolved . | . . Power . | . . Propulsion . | . . Utility . | . . Weapon . | . . Parts Attached 19 | 5 14 Power 3 | 1 2 Engine 3 | 1 2 Core . | . . Reactor . | . . Propulsion 5 | 2 3 Treads 2 | 2 . Leg . | . . Wheel . | . . Hover 3 | . 3 Flight . | . . Utility 2 | . 2 Device . | . . Storage . | . . Processor . | . . Hackware . | . . Protection 2 | . 2 Artifact . | . . Weapon 9 | 2 7 Energy Gun 1 | . 1 Energy Cannon . | . . Ballistic Gun 4 | 2 2 Ballistic Cannon . | . . Launcher 1 | . 1 Special Weapon . | . . Impact Weapon 2 | . 2 Slashing Weapon . | . . Piercing Weapon . | . . Special Melee Weapon 1 | . 1 Unidentified Prototypes . | . . Corrupted Parts 1 | . 1 System Corruption 5 | . 5 Parts Lost 7 | . 7 Power 2 | . 2 Propulsion 3 | . 3 Utility . | . . Weapon 2 | . 2 Highest Loss Streak 4 | . 4 To Critical Strikes . | . . Average Slot Usage (%) 78 | . 78 Engine 10 | . 10 Hover 18 | . 18 Protection 24 | . 24 Energy Gun 3 | . 3 Ballistic Gun 9 | . 9 Launcher 3 | . 3 Impact Weapon 6 | . 6 Naked Turns . | . . Heaviest Build 13 | 8 13 Greatest Support 40 | 40 14 Greatest Overweight (x) 4 | . 4 Average Overweight (x) . | . . Largest Inventory Capacity 5 | 5 5 Average Capacity 5 | 5 5 Most Carried 5 | . 5 Average Carried 3 | . 4 Final Capacity 5 | 5 5 Final Carried 5 | . 5 Class Distribution -------------------- 100% | Mutant Dominant Class ---------------- Mutant | -10/Materials Resources | -11 -10 ----------- Run | Yrd Mat Matter Collected 381 | 228 153 Remotely . | . . Salvage Created 296 | . 296 Parts 15 | . 15 Haulers Intercepted . | . . Recyclers Shooed . | . . Parts Field Recycled . | . . Retrieved Matter . | . . Parts Self-Destructed . | . . Prevented . | . . Kills | -11 -10 ------- Run | Yrd Mat Combat Hostiles Destroyed 6 | . 6 Melee 2 | . 2 Guns 2 | . 2 AOE 2 | . 2 Classes Destroyed 3 | . 3 Worker 1 | . 1 Recycler 1 | . 1 Grunt 6 | . 6 Best Kill Streak 4 | . 4 Combat Bots Only 3 | . 3 Max Kills in Single Turn 2 | . 2 Gunslinging . | . . Exploded 1 | . 1 Melee 1 | . 1 Uniques/NPCs Destroyed . | . . Combat | -11 -10 -------- Run | Yrd Mat Hostile Shots Fired 65 | . 65 Missed 22 | . 22 Damage Taken 762 | . 762 Core 250 | . 250 Absorbed by Shields . | . . Redirected to Shielding 43 | . 43 Core Remaining (%) 100 | 100 . Volleys Fired 12 | . 12 Largest 2 | . 2 Hottest 65 | . 65 Shots Fired 16 | . 16 Gun 14 | . 14 Cannon . | . . Launcher 2 | . 2 Special . | . . Kinetic 6 | . 6 Thermal 8 | . 8 Explosive 2 | . 2 Electromagnetic . | . . Robot Hit Streak 6 | . 6 Robot Miss Streak 3 | . 3 Penetration Max . | . . Secondary Targets . | . . Shots Hit Robots 17 | . 17 Core Hits 10 | . 10 Critical Kills 1 | . 1 Critical Parts Destroyed . | . . Critical Strikes 1 | . 1 Smash 1 | . 1 Melee Attacks 12 | . 12 Impact 10 | . 10 Slashing . | . . Piercing . | . . Sneak Attacks . | . . Combat Hostiles . | . . Follow-up Attacks . | . . Damage Inflicted 610 | . 610 Guns 114 | . 114 Cannons . | . . Explosions 293 | . 293 Melee 196 | . 196 Ramming 7 | . 7 Kinetic 51 | . 51 Thermal 63 | . 63 Explosive 293 | . 293 Electromagnetic . | . . Impact 196 | . 196 Slashing . | . . Piercing . | . . Highest Corruption 5 | . 5 Average Corruption 5 | . 5 Corruption Purged . | . . Corruption Blocked . | . . Effects 3 | . 3 Matter Fused 1 | . 1 Data Loss (major) 1 | . 1 Misfires 1 | . 1 Overload Shots . | . . Overflow Damage 105 | . 105 Projectiles . | . . Explosions 91 | . 91 Melee 14 | . 14 Knockbacks 1 | . 1 Impact 1 | . 1 Kinetic . | . . Secondary . | . . Self-Inflicted Damage 264 | . 264 Shots 4 | . 4 Rammed 1 | . 1 Targets Rammed 1 | . 1 Kicked . | . . Crushed . | . . Highest Temperature 141 | . 141 Average Temperature 49 | . 49 Received Heat Transfer 243 | . 243 Siege Activations . | . . Robots Corrupted . | . . Combat Hostiles . | . . Parts Fried . | . . Impact Corruptions 2 | . 2 Robots Melted . | . . Combat Hostiles . | . . Parts Melted . | . . Heat Transferred 148 | . 148 Parts Sabotaged . | . . Parts Stolen . | . . Parts Stripped . | . . Power Chain Reactions . | . . Alert | -11 -10 ------- Run | Yrd Mat Peak Influence 220 | . 220 Initial . | . . Average 69 | . 88 Maximum Alert Level 1 | . 1 Low Security (%) 86 | 100 83 Level 1 13 | . 16 Level 2 . | . . Level 3 . | . . Level 4 . | . . Level 5 . | . . High Security . | . . Max Security . | . . Squads Dispatched 2 | . 2 Investigation 1 | . 1 Extermination . | . . Reinforcement 1 | . 1 Assault . | . . Garrison . | . . Intercept . | . . Searches Triggered . | . . Construction Impeded . | . . Haulers Reinforced . | . . Active Scanning Responses . | . . Cargo Convoy Interrupts . | . . Stealth | -11 -10 --------- Run | Yrd Mat Distress Signals 2 | . 2 Communications Jammed . | . . Distress Signals . | . . Times Spotted 11 | . 11 Peak Tracking Total 4 | . 4 Tactical Retreats 1 | . 1 Traps | -11 -10 ------- Run | Yrd Mat Traps Triggered . | . . Indirectly . | . . Trap Hack Attempts . | . . Triggered . | . . Disarmed . | . . Reprogrammed 6 | . 6 Reused 1 | . 1 Traps Extracted . | . . Installed . | . . Triggered 1 | . 1 Machines | -11 -10 ---------- Run | Yrd Mat Machines Disabled 2 | . 2 Max in Single Turn 2 | . 2 Machines Repaired . | . . Machines Dismantled . | . . Machines Sabotaged . | . . Overloaded Fab Kills . | . . Hacking | -11 -10 --------- Run | Yrd Mat Machines Accessed 2 | . 2 Terminals 2 | . 2 Fabricators . | . . Repair Stations . | . . Recycling Units . | . . Scanalyzers . | . . Garrison Access . | . . Total Hacks 4 | . 4 Successful 2 | . 2 Failed 2 | . 2 Catastrophic 1 | . 1 Database Lockouts . | . . Manual . | . . Terminals 4 | . 4 Fabricators . | . . Repair Stations . | . . Recycling Units . | . . Scanalyzers . | . . Garrison Access . | . . Terminal Hacks 2 | . 2 Locate Traps 1 | . 1 Reprogram Traps 1 | . 1 Fabricator Hacks . | . . Repair Station Hacks . | . . Recycling Unit Hacks . | . . Scanalyzer . | . . Garrison Access Hacks . | . . Unauthorized Hacks . | . . Terminals . | . . Fabricators . | . . Repair Stations . | . . Recycling Units . | . . Scanalyzers . | . . Garrison Access . | . . Data Cores Recovered . | . . Used . | . . Hacking Detections 1 | . 1 Full Trace Events . | . . Feedback Events . | . . Feedback Blocked . | . . Robot Schematics Acquired . | . . Robots Built . | . . Authchips . | . . Time . | . . Total Robot Build Rating . | . . Part Schematics Acquired . | . . Parts Built . | . . Authchips . | . . Time . | . . Total Part Build Rating . | . . Parts Repaired . | . . Time . | . . Parts Recycled . | . . Recycled Matter . | . . Retrieved Matter . | . . Retrieved Components . | . . Parts Scanalyzed . | . . Part Schematics Acquired . | . . Parts Damaged . | . . Bothacking | -11 -10 ------------ Run | Yrd Mat Used RIF Installer . | . . Robots Hacked 1 | . 1 Non-combat . | . . Combat 1 | . 1 Robot Hacks Applied 2 | . 2 parse_system 2 | . 2 Relay Couplers Released . | . . Fabnet Peak Effective % . | . . Robots Rewired . | . . Allies Hacked . | . . Hacks Repelled . | . . Allies | -11 -10 -------- Run | Yrd Mat Total Allies . | . . Largest Group . | . . Highest-Rated Group . | . . Highest-Rated Ally . | . . Total Orders . | . . Ally Attacks . | . . Total Damage . | . . Kills . | . . Allies Corrupted . | . . Allies Melted . | . . Intel | -11 -10 ------- Run | Yrd Mat Robot Analysis Total . | . . Derelict Logs Recovered . | . . Drone Launches . | . . Drone Recoveries . | . . Exploration | -11 -10 ------------- Run | Yrd Mat Turns Passed 330 | 70 260 Spaces Moved 259 | 43 216 Core 28 | 5 23 Treads 38 | 38 . Legs . | . . Wheels . | . . Hover 193 | . 193 Flight . | . . Fastest Speed 50 | 50 56 Average Speed 86 | 147 73 Slowest Speed 250 | 160 250 Overloaded Moves . | . . Propulsion Burnouts . | . . Robots Hopped . | . . Cave-ins Triggered . | . . Exploration Rate (%) 15 | 4 26 Regions Visited 1 Branch Regions . Pre-discovered Areas . | . . Known Exits Taken . | . . Unknown Exits Taken 1 | 1 . Scrap Searched . | . . Spaces Dug . | . . Terrain Destroyed 30 | . 30 Melee . | . . Projectile . | . . AOE 30 | . 30 Terrain Rammed . | . . Walls Destroyed . | . . Machines Disabled . | . . Actions | -11 -10 --------- Run | Yrd Mat Total 322 | 47 275 Wait 9 | . 9 Move 258 | 42 216 Hop . | . . Pick Up 7 | . 7 Fast Attach 14 | 5 9 Attach . | . . Detach . | . . Swap 5 | . 5 Drop 4 | . 4 Fire 12 | . 12 Melee 12 | . 12 Ram 1 | . 1 Kick . | . . Crush . | . . Escape Stasis . | . . Rewire . | . . Trap . | . . Miscellaneous . | . . Route ------- -11/Scrapyard -10/Materials (discovered 1 exit: [*Min]) History --------- Turn | Location | Event 2 | -11/Scrapyard | Met Revision 17 9 | -11/Scrapyard | Discovered new exit (range 14) 71 | -11/Scrapyard | Entered Materials 233 | -10/Materials | Lost 4 parts (1p1n2w) 260 | -10/Materials | Core integrity fell below 50% 279 | -10/Materials | Core integrity fell below 20% 313 | -10/Materials | Lost 3 parts (1p2n) 318 | -10/Materials | Build established: Mutant 323 | -10/Materials | Discovered new exit (range 16) 331 | -10/Materials | Destroyed by S-10 Pest with Light Assault Rifle Last Messages --------------- 00270_ G-47 Trooper suffers critical hit (Smash). 00270_ G-47 Trooper destroyed. 00274_ Acquired Corrupted Particle Gun. 00274_ Integrated Corrupted Particle Gun (+5). 00282_ Imp. Hover Unit destroyed. 00285_ System corrupted: Substantial component data lost. 00285_ G-34 Mercenary destroyed. 00289_ R-06 Scavenger collects Heat Sink. 00297_ Acquired Ion Engine. 00300_ System corrupted: FCS attempts to trigger Particle Gun. 00300_ System corrupted: Particle Gun misfires. 00301_ K-01 Serf collects debris. 00303_ Acquired 32 matter. 00307_ K-01 Serf collects debris. 00322_ System corrupted: Matter fused (-7). 00323_ EXIT=FOUND 00331_ U-05 Engineer builds a Wall. Map ----- +----------------------------------------------------+ | | | | | | | ?????????????????????????????????????????????????? | | ??????########???????????????????????????????????? | | ??????#/ !! =#???????????????????????????????????? | | ??????#/ !! #?????????????????##########????????? | | ??????# #?????????????????? #????????? | | ????### #######???????????? #????????? | | ????# #????????????? #????????? | | ????# #????????????? ! #????????? | | ????# #?????????????? ?????????? | | ????####/####### #?????????????? ?????????? | | ?????# #??# #??????????????? ??????????? | | ?????# #??# #??????????????? ???????????? | | ?????# #??# #??##############+##+#????????? | | ????## % ##?# #??# % #????????? | | ???## #?# #??# = % +????????? | | ???# ### #??# [ ! #????????? | | ??## # # #??# ###/######+####????????? | | ??# # #??# # ?#???????????????? | | ??# #u #??# # #???????????????? | | ### # #### # #???????????????? | | "## # T # #???????????????? | | "## + #???????????????? | | "#########/# ### r k@# #???????????????? | | % ########???????????????? | | ??????????????????? | | #?????????????????? | | / a #?????????????????? | | / #######+## #?????????????????? | | #???? ## ""#?????????????????? | | ##?? ??# T"#?????????????????? | | " +? ""???# ""#?????????????????? | | ### "????# +?????????????????? | | #?#? "????# ??????????????????? | | #"T"###### ##???? ???# #### #?????????????????? | | #####????# #???????#?? ??? +?????????????????? | | ?????????#+#?????????? ?????#?????????????????? | | ????????? ??????????? ???????????????????????? | | ?????????" ??????????? s ???????????????????????? | | ?????????" ???????????? ???????????????????????? | | ?????????" ??????????????????????????????????????? | | ?????????? ??????????????????????????????????????? | | ?????????????????????????????????????????????????? | | ?????????????????????????????????????????????????? | | ?????????????????????????????????????????????????? | | ?????????????????????????????????????????????????? | | ?????????????????????????????????????????????????? | | ?????????????????????????????????????????????????? | +----------------------------------------------------+ Best States ------------- Heat Dissipation 25 Energy Generation 10 Energy Capacity 250 Matter Stores 300 Matter Capacity 300 Sight Range 16 Terrain Scan Density 10 Core Shielding 20 Evasion (%) 53 Recoil Reduction 2 Item Schematics ----------------- None Robot Schematics ------------------ None Fabricated ------------ Nothing Alien Tech Used ----------------- None Achievements -------------- None Challenges ------------ None Game ------ Seed IonSuspensionWeb Manual? 0 Play Time 00:07:51 Cumulative 7.6 hours Start 2024.05.11 @ 15:57:43 End 2024.05.11 @ 17:46:07 Sessions 2 Manual Loads 0 Difficulty Rogue Special Mode None Game No. 15 Rogue 15 Adventurer 0 Explorer 0 Win Type - Total 0 Types 0/0/0/0/0/0/0/0/0 Lore% 13 Gallery% 18 Achievement% 14 Wizard Run 0 Options --------- Layout 1 ASCII 0 Keyboard 0 Movement Numpad Keybinds 0 Fullscreen 1 Font 24/Smallcaps Map View 50x35 Zoom Use 0% Tactical HUD 1 Map Filters NONE Filters NONE Steam 1 RUN: dac7a997-9158-44b1-ab34-226404be938d